fUSD/lending_fUSD_20260607
["ID","MTS","AMOUNT","RATE_DAILY","PERIOD"]
[424384824,1780825880000,-352.74604861,0.00029679,2]
[424384820,1780825880000,-462.5205084,0.00029679,2]
[424384822,1780825880000,-413.94635796,0.00029679,2]
[424384819,1780825880000,-357.13012477,0.00029679,2]
[424384823,1780825880000,-489.53125236,0.00029679,2]
[424384817,1780825880000,-214.76149402,0.00029679,2]
[424384826,1780825880000,-463.53779015,0.00029679,2]
[424384825,1780825880000,-338.53628017,0.00029679,2]
[424384801,1780825880000,-225.37256483,0.00029679,2]
[424384828,1780825880000,-652.53493119,0.00029679,2]
[424384814,1780825880000,-350.72436359,0.00029679,2]
[424384800,1780825880000,-483.88795737,0.00029679,2]
[424384787,1780825880000,-244.43556914,0.00029679,2]
[424384798,1780825880000,-348.91715148,0.00029679,2]
[424384835,1780825880000,-498.39904717,0.00029689,2]
[424384772,1780825880000,-211.88297606,0.00029679,2]
[424384780,1780825880000,-243.63265409,0.00029679,2]
[424384773,1780825880000,-456.2455871,0.00029679,2]
[424384776,1780825880000,-596.30277968,0.00029679,2]
[424384779,1780825880000,-174.51597434,0.00029679,2]
[424384775,1780825880000,-282.11882203,0.00029679,2]
[424384774,1780825880000,-245.85345257,0.00029679,2]
[424384777,1780825880000,-238.75576566,0.00029679,2]
[424384778,1780825880000,-229.05127263,0.00029679,2]
[424384782,1780825880000,-232.14031331,0.00029679,2]
[424384783,1780825880000,-174.70730463,0.00029679,2]
[424384795,1780825880000,-187.6227394,0.00029679,2]
[424384781,1780825880000,-547.47718244,0.00029679,2]
[424384791,1780825880000,-242.62841635,0.00029679,2]
[424384788,1780825880000,-298.12493231,0.00029679,2]
[424384785,1780825880000,-210.92447281,0.00029679,2]
[424384789,1780825880000,-466.9446184,0.00029679,2]
[424384786,1780825880000,-233.23869709,0.00029679,2]
[424384790,1780825880000,-529.34542604,0.00029679,2]
[424384792,1780825880000,-288.19663596,0.00029679,2]
[424384793,1780825880000,-365.62696951,0.00029679,2]
[424384797,1780825880000,-442.90220179,0.00029679,2]
[424384796,1780825880000,-268.67333081,0.00029679,2]
[424384794,1780825880000,-554.39126561,0.00029679,2]
[424384803,1780825880000,-330.81811152,0.00029679,2]
[424384784,1780825880000,-421.11966166,0.00029679,2]
[424384837,1780825880000,-510.84321964,0.00029695,2]
[424384866,1780825880000,-503.0,0.00029863,60]
[424384838,1780825880000,-518.56319879,0.00029712,2]
[424384862,1780825880000,-503.0,0.00029863,60]
[424384867,1780825880000,-503.0,0.00029863,60]
[424384864,1780825880000,-503.0,0.00029863,60]
[424384875,1780825880000,-500.0,0.00029863,2]
[424384868,1780825880000,-503.0,0.00029863,60]
[424384889,1780825880000,-500.0,0.00029863,60]
[424384869,1780825880000,-503.0,0.00029863,60]
[424384865,1780825880000,-503.0,0.00029863,60]
[424384876,1780825880000,-500.0,0.00029863,2]
[424384870,1780825880000,-513.36410633,0.00029863,60]
[424384872,1780825880000,-500.0,0.00029863,2]
[424384874,1780825880000,-500.0,0.00029863,2]
[424384859,1780825880000,-503.0,0.00029863,60]
[424384871,1780825880000,-500.0,0.00029863,2]
[424384878,1780825880000,-1035.0,0.00029863,60]
[424384877,1780825880000,-500.0,0.00029863,2]
[424384888,1780825880000,-500.0,0.00029863,60]
[424384880,1780825880000,-1035.0,0.00029863,60]
[424384879,1780825880000,-1035.0,0.00029863,60]
[424384881,1780825880000,-1035.0,0.00029863,60]
[424384887,1780825880000,-1035.0,0.00029863,60]
[424384882,1780825880000,-1035.0,0.00029863,60]
[424384885,1780825880000,-1035.0,0.00029863,60]
[424384886,1780825880000,-500.0,0.00029863,60]
[424384883,1780825880000,-1035.0,0.00029863,60]
[424384884,1780825880000,-1035.0,0.00029863,60]
[424384873,1780825880000,-500.0,0.00029863,2]
[424384857,1780825880000,-503.0,0.00029863,60]
[424384836,1780825880000,-480.77583265,0.00029689,2]
[424384861,1780825880000,-503.0,0.00029863,60]
[424384860,1780825880000,-503.0,0.00029863,60]
[424384827,1780825880000,-508.27296515,0.00029679,2]
[424384839,1780825880000,-477.22984903,0.00029712,2]
[424384829,1780825880000,-255.09090333,0.00029679,2]
[424384831,1780825880000,-500.94582935,0.00029689,2]
[424384833,1780825880000,-472.49869021,0.00029689,2]
[424384830,1780825880000,-258.9806262,0.00029679,2]
[424384834,1780825880000,-501.89872048,0.00029689,2]
[424384840,1780825880000,-598.85759476,0.00029712,2]
[424384843,1780825880000,-2570.26,0.000298,14]
[424384842,1780825880000,-152.0,0.00029739,37]
[424384844,1780825880000,-1516.08,0.00029802,7]
[424384841,1780825880000,-574.62750092,0.00029723,2]
[424384832,1780825880000,-517.29773609,0.00029689,2]
[424384850,1780825880000,-503.0,0.00029863,60]
[424384851,1780825880000,-503.0,0.00029863,60]
[424384854,1780825880000,-503.0,0.00029863,60]
[424384852,1780825880000,-503.0,0.00029863,60]
[424384853,1780825880000,-503.0,0.00029863,60]
[424384855,1780825880000,-503.0,0.00029863,60]
[424384863,1780825880000,-500.0,0.00029863,14]
[424384856,1780825880000,-503.0,0.00029863,60]
[424384858,1780825880000,-503.0,0.00029863,60]
[424384846,1780825880000,-503.0,0.00029863,60]
[424384845,1780825880000,-1639.49,0.00029827,7]
[424384847,1780825880000,-503.0,0.00029863,60]
[424384849,1780825880000,-503.0,0.00029863,60]
[424384848,1780825880000,-503.0,0.00029863,60]
[424384928,1780825881000,-1173.0,0.00029863,60]
[424384930,1780825881000,-1035.0,0.00029863,60]
[424384933,1780825881000,-1173.0,0.00029863,60]
[424384929,1780825881000,-1173.0,0.00029863,60]
[424384931,1780825881000,-1173.0,0.00029863,60]
[424384914,1780825881000,-500.0,0.00029863,60]
[424384936,1780825881000,-1173.0,0.00029863,60]
[424384937,1780825881000,-1035.0,0.00029863,60]
[424384926,1780825881000,-1173.0,0.00029863,60]
[424384923,1780825881000,-1173.0,0.00029863,60]
[424384932,1780825881000,-1173.0,0.00029863,60]
[424384935,1780825881000,-1173.0,0.00029863,60]
[424384927,1780825881000,-1173.0,0.00029863,60]
[424384947,1780825881000,-150.0,0.00029863,30]
[424384934,1780825881000,-1173.0,0.00029863,60]
[424384938,1780825881000,-1173.0,0.00029863,60]
[424384939,1780825881000,-1173.0,0.00029863,60]
[424384941,1780825881000,-1173.0,0.00029863,60]
[424384944,1780825881000,-1173.0,0.00029863,60]
[424384940,1780825881000,-1035.0,0.00029863,60]
[424384949,1780825881000,-206.7425237,0.00029863,30]
[424384946,1780825881000,-157.60519,0.00029863,7]
[424384943,1780825881000,-1173.0,0.00029863,60]
[424384942,1780825881000,-1053.0953843,0.00029863,60]
[424384948,1780825881000,-1828.0,0.00029863,60]
[424384945,1780825881000,-1177.05631674,0.00029863,60]
[424384922,1780825881000,-1173.0,0.00029863,60]
[424384925,1780825881000,-1173.0,0.00029863,60]
[424384921,1780825881000,-1173.0,0.00029863,60]
[424384906,1780825881000,-1035.0,0.00029863,60]
[424384924,1780825881000,-1035.0,0.00029863,60]
[424384893,1780825881000,-500.0,0.00029863,60]
[424384951,1780825881000,-1828.0,0.00029863,60]
[424384899,1780825881000,-500.0,0.00029863,60]
[424384900,1780825881000,-500.0,0.00029863,60]
[424384892,1780825881000,-1035.0,0.00029863,60]
[424384895,1780825881000,-500.0,0.00029863,60]
[424384890,1780825881000,-1035.0,0.00029863,60]
[424384894,1780825881000,-1035.0,0.00029863,60]
[424384896,1780825881000,-1035.0,0.00029863,60]
[424384898,1780825881000,-1035.0,0.00029863,60]
[424384897,1780825881000,-500.0,0.00029863,60]
[424384902,1780825881000,-500.0,0.00029863,60]
[424384903,1780825881000,-1035.0,0.00029863,60]
[424384917,1780825881000,-1173.0,0.00029863,60]
[424384907,1780825881000,-500.0,0.00029863,60]
[424384901,1780825881000,-1035.0,0.00029863,60]
[424384911,1780825881000,-500.0,0.00029863,60]
[424384904,1780825881000,-500.0,0.00029863,60]
[424384905,1780825881000,-500.0,0.00029863,60]
[424384909,1780825881000,-365.19884206,0.00029863,60]
[424384912,1780825881000,-1035.0,0.00029863,60]
[424384908,1780825881000,-500.0,0.00029863,60]
[424384915,1780825881000,-451.75288582,0.00029863,60]
[424384913,1780825881000,-500.0,0.00029863,60]
[424384918,1780825881000,-1035.0,0.00029863,60]
[424384920,1780825881000,-1173.0,0.00029863,60]
[424384919,1780825881000,-1173.0,0.00029863,60]
[424384916,1780825881000,-1173.0,0.00029863,60]
[424384910,1780825881000,-500.0,0.00029863,60]
[424384891,1780825881000,-500.0,0.00029863,60]
[424384961,1780825881000,-1828.0,0.00029863,60]
[424384953,1780825881000,-1828.0,0.00029863,60]
[424384980,1780825881000,-500.0,0.00029863,60]
[424384982,1780825881000,-512.72709505,0.00029863,60]
[424384991,1780825881000,-1828.0,0.00029863,60]
[424384989,1780825881000,-1828.0,0.00029863,60]
[424384990,1780825881000,-1828.0,0.00029863,60]
[424385001,1780825881000,-218.75959586,0.00029863,60]
[424385000,1780825881000,-500.0,0.00029863,60]
[424384999,1780825881000,-500.0,0.00029863,60]
[424384992,1780825881000,-1828.0,0.00029863,60]
[424384996,1780825881000,-500.0,0.00029863,60]
[424384995,1780825881000,-287.44605956,0.00029863,60]
[424384998,1780825881000,-500.0,0.00029863,60]
[424384994,1780825881000,-1846.53736242,0.00029863,60]
[424384979,1780825881000,-1828.0,0.00029863,60]
[424384993,1780825881000,-1828.0,0.00029863,60]
[424385003,1780825881000,-500.0,0.00029863,60]
[424385013,1780825881000,-150.0,0.00029863,60]
[424385004,1780825881000,-150.0,0.00029863,60]
[424385005,1780825881000,-183.93938706,0.00029863,60]
[424385002,1780825881000,-500.0,0.00029863,60]
[424385014,1780825881000,-168.48877466,0.00029863,60]
[424385006,1780825881000,-166.14176509,0.00029863,60]
[424385007,1780825881000,-278.44102927,0.00029863,60]
[424385008,1780825881000,-500.0,0.00029863,60]
[424385009,1780825881000,-500.0,0.00029863,60]
[424385011,1780825881000,-428.23959598,0.00029863,60]
[424385010,1780825881000,-500.0,0.00029863,60]
[424384962,1780825881000,-500.0,0.00029863,60]
[424384997,1780825881000,-500.0,0.00029863,60]
[424384976,1780825881000,-1828.0,0.00029863,60]
[424385012,1780825881000,-150.0,0.00029863,60]
[424384978,1780825881000,-500.0,0.00029863,60]
[424384981,1780825881000,-1828.0,0.00029863,60]
[424384955,1780825881000,-1828.0,0.00029863,60]
[424384952,1780825881000,-500.0,0.00029863,60]
[424384957,1780825881000,-1828.0,0.00029863,60]
[424384958,1780825881000,-500.0,0.00029863,60]
[424384959,1780825881000,-150.0,0.00029863,60]
[424384956,1780825881000,-1828.0,0.00029863,60]
[424384960,1780825881000,-150.0,0.00029863,60]
[424384954,1780825881000,-500.0,0.00029863,60]
[424384965,1780825881000,-500.0,0.00029863,60]
[424384963,1780825881000,-197.96496476,0.00029863,60]
[424384964,1780825881000,-1828.0,0.00029863,60]
[424384966,1780825881000,-1828.0,0.00029863,60]
[424384974,1780825881000,-1828.0,0.00029863,60]
[424384950,1780825881000,-500.0,0.00029863,60]
[424384970,1780825881000,-1828.0,0.00029863,60]
[424384988,1780825881000,-1828.0,0.00029863,60]
[424384987,1780825881000,-396.94383744,0.00029863,60]
[424384977,1780825881000,-500.0,0.00029863,60]
[424384975,1780825881000,-500.0,0.00029863,60]
[424384969,1780825881000,-224.92811501,0.00029863,60]
[424384985,1780825881000,-500.0,0.00029863,60]
[424384984,1780825881000,-500.0,0.00029863,60]
[424384983,1780825881000,-500.0,0.00029863,60]
[424384971,1780825881000,-500.0,0.00029863,60]
[424384973,1780825881000,-500.0,0.00029863,60]
[424384967,1780825881000,-500.0,0.00029863,60]
[424384968,1780825881000,-1828.0,0.00029863,60]
[424384972,1780825881000,-1828.0,0.00029863,60]
[424384986,1780825881000,-1828.0,0.00029863,60]
[424385062,1780825882000,-610.0,0.00029863,2]
[424385059,1780825882000,-610.0,0.00029863,2]
[424385055,1780825882000,-150.0,0.00029863,60]
[424385057,1780825882000,-150.0,0.00029863,60]
[424385063,1780825882000,-610.0,0.00029863,2]
[424385049,1780825882000,-150.0,0.00029863,60]
[424385052,1780825882000,-150.0,0.00029863,60]
[424385048,1780825882000,-150.0,0.00029863,60]
[424385047,1780825882000,-150.0,0.00029863,60]
[424385046,1780825882000,-150.0,0.00029863,60]
[424385044,1780825882000,-150.0,0.00029863,60]
[424385053,1780825882000,-150.0,0.00029863,60]
[424385058,1780825882000,-610.0,0.00029863,2]
[424385076,1780825882000,-150.0,0.00029863,60]
[424385056,1780825882000,-150.0,0.00029863,60]
[424385061,1780825882000,-610.0,0.00029863,2]
[424385070,1780825882000,-610.0,0.00029863,2]
[424385065,1780825882000,-610.0,0.00029863,2]
[424385075,1780825882000,-610.0,0.00029863,2]
[424385068,1780825882000,-610.0,0.00029863,2]
[424385066,1780825882000,-610.0,0.00029863,2]
[424385064,1780825882000,-610.0,0.00029863,2]
[424385072,1780825882000,-610.0,0.00029863,2]
[424385069,1780825882000,-610.0,0.00029863,2]
[424385067,1780825882000,-610.0,0.00029863,2]
[424385071,1780825882000,-610.0,0.00029863,2]
[424385045,1780825882000,-150.0,0.00029863,60]
[424385054,1780825882000,-150.0,0.00029863,60]
[424385042,1780825882000,-500.0,0.00029863,60]
[424385032,1780825882000,-150.0,0.00029863,60]
[424385051,1780825882000,-150.0,0.00029863,60]
[424385015,1780825882000,-150.0,0.00029863,60]
[424385016,1780825882000,-500.0,0.00029863,60]
[424385018,1780825882000,-500.0,0.00029863,60]
[424385017,1780825882000,-150.0,0.00029863,60]
[424385028,1780825882000,-150.0,0.00029863,60]
[424385020,1780825882000,-500.0,0.00029863,60]
[424385019,1780825882000,-150.0,0.00029863,60]
[424385027,1780825882000,-150.0,0.00029863,60]
[424385022,1780825882000,-500.0,0.00029863,60]
[424385021,1780825882000,-150.0,0.00029863,60]
[424385023,1780825882000,-150.0,0.00029863,60]
[424385024,1780825882000,-500.0,0.00029863,60]
[424385025,1780825882000,-150.0,0.00029863,60]
[424385026,1780825882000,-481.11085494,0.00029863,60]
[424385030,1780825882000,-150.0,0.00029863,60]
[424385033,1780825882000,-150.0,0.00029863,60]
[424385029,1780825882000,-150.0,0.00029863,60]
[424385036,1780825882000,-150.0,0.00029863,60]
[424385037,1780825882000,-150.0,0.00029863,60]
[424385031,1780825882000,-150.0,0.00029863,60]
[424385038,1780825882000,-500.0,0.00029863,60]
[424385034,1780825882000,-150.0,0.00029863,60]
[424385035,1780825882000,-217.8797051,0.00029863,60]
[424385050,1780825882000,-150.0,0.00029863,60]
[424385040,1780825882000,-500.0,0.00029863,60]
[424385043,1780825882000,-269.72467619,0.00029863,60]
[424385039,1780825882000,-150.0,0.00029863,60]
[424385041,1780825882000,-150.0,0.00029863,60]
[424385074,1780825882000,-610.0,0.00029863,2]
[424385060,1780825882000,-610.0,0.00029863,2]
[424385077,1780825882000,-610.0,0.00029863,2]
[424385102,1780825882000,-150.0,0.00029863,60]
[424385107,1780825882000,-150.0,0.00029863,60]
[424385108,1780825882000,-150.0,0.00029863,60]
[424385111,1780825882000,-150.0,0.00029863,60]
[424385105,1780825882000,-150.0,0.00029863,60]
[424385115,1780825882000,-150.0,0.00029863,60]
[424385119,1780825882000,-500.0,0.00029863,60]
[424385116,1780825882000,-266.9958703,0.00029863,60]
[424385118,1780825882000,-500.0,0.00029863,60]
[424385117,1780825882000,-500.0,0.00029863,60]
[424385120,1780825882000,-500.0,0.00029863,60]
[424385126,1780825882000,-500.0,0.00029863,60]
[424385121,1780825882000,-500.0,0.00029863,60]
[424385110,1780825882000,-150.0,0.00029863,60]
[424385122,1780825882000,-500.0,0.00029863,60]
[424385123,1780825882000,-500.0,0.00029863,2]
[424385124,1780825882000,-500.0,0.00029863,60]
[424385125,1780825882000,-639.73651485,0.00029863,60]
[424385128,1780825882000,-500.0,0.00029863,2]
[424385135,1780825882000,-500.0,0.00029863,60]
[424385133,1780825882000,-500.0,0.00029863,2]
[424385130,1780825882000,-500.0,0.00029863,2]
[424385129,1780825882000,-500.0,0.00029863,60]
[424385132,1780825882000,-500.0,0.00029863,60]
[424385131,1780825882000,-500.0,0.00029863,60]
[424385134,1780825882000,-500.0,0.00029863,60]
[424385136,1780825882000,-500.0,0.00029863,2]
[424385073,1780825882000,-610.0,0.00029863,2]
[424385127,1780825882000,-500.0,0.00029863,60]
[424385106,1780825882000,-150.0,0.00029863,60]
[424385137,1780825882000,-500.0,0.00029863,60]
[424385104,1780825882000,-150.0,0.00029863,60]
[424385112,1780825882000,-150.0,0.00029863,60]
[424385078,1780825882000,-610.0,0.00029863,2]
[424385079,1780825882000,-610.0,0.00029863,2]
[424385081,1780825882000,-610.0,0.00029863,2]
[424385083,1780825882000,-150.0,0.00029863,60]
[424385086,1780825882000,-150.0,0.00029863,60]
[424385088,1780825882000,-150.0,0.00029863,60]
[424385082,1780825882000,-610.0,0.00029863,2]
[424385084,1780825882000,-615.11222782,0.00029863,2]
[424385089,1780825882000,-150.0,0.00029863,60]
[424385085,1780825882000,-150.0,0.00029863,60]
[424385087,1780825882000,-150.0,0.00029863,60]
[424385091,1780825882000,-150.0,0.00029863,60]
[424385090,1780825882000,-150.0,0.00029863,60]
[424385080,1780825882000,-150.0,0.00029863,60]
[424385100,1780825882000,-150.0,0.00029863,60]
[424385114,1780825882000,-150.0,0.00029863,60]
[424385109,1780825882000,-150.0,0.00029863,60]
[424385113,1780825882000,-150.0,0.00029863,60]
[424385103,1780825882000,-150.0,0.00029863,60]
[424385101,1780825882000,-150.0,0.00029863,60]
[424385098,1780825882000,-150.0,0.00029863,60]
[424385099,1780825882000,-150.0,0.00029863,60]
[424385092,1780825882000,-150.0,0.00029863,60]
[424385097,1780825882000,-150.0,0.00029863,60]
[424385096,1780825882000,-150.0,0.00029863,60]
[424385093,1780825882000,-150.0,0.00029863,60]
[424385095,1780825882000,-150.0,0.00029863,60]
[424385094,1780825882000,-150.0,0.00029863,60]
[424385178,1780825883000,-500.0,0.00029863,2]
[424385177,1780825883000,-500.0,0.00029863,60]
[424385176,1780825883000,-500.0,0.00029863,60]
[424385175,1780825883000,-500.0,0.00029863,60]
[424385166,1780825883000,-500.0,0.00029863,60]
[424385172,1780825883000,-500.0,0.00029863,60]
[424385173,1780825883000,-500.0,0.00029863,2]
[424385171,1780825883000,-500.0,0.00029863,60]
[424385169,1780825883000,-500.0,0.00029863,60]
[424385167,1780825883000,-500.0,0.00029863,2]
[424385185,1780825883000,-500.0,0.00029863,2]
[424385179,1780825883000,-500.0,0.00029863,60]
[424385187,1780825883000,-500.0,0.00029863,2]
[424385181,1780825883000,-500.0,0.00029863,60]
[424385182,1780825883000,-500.0,0.00029863,60]
[424385184,1780825883000,-500.0,0.00029863,60]
[424385183,1780825883000,-503.41003638,0.00029863,60]
[424385186,1780825883000,-607.88803442,0.00029863,60]
[424385189,1780825883000,-150.0,0.00029863,2]
[424385188,1780825883000,-316.37965421,0.00029863,2]
[424385190,1780825883000,-491.92211099,0.00029864,2]
[424385191,1780825883000,-310.98838071,0.00029888,2]
[424385194,1780825883000,-49913.3073098,0.000299,2]
[424385165,1780825883000,-500.0,0.00029863,60]
[424385196,1780825883000,-500.0,0.00029937,19]
[424385180,1780825883000,-500.0,0.00029863,60]
[424385168,1780825883000,-500.0,0.00029863,60]
[424385148,1780825883000,-500.0,0.00029863,60]
[424385164,1780825883000,-500.0,0.00029863,2]
[424385195,1780825883000,-169.7,0.00029903,3]
[424385139,1780825883000,-500.0,0.00029863,2]
[424385138,1780825883000,-500.0,0.00029863,60]
[424385141,1780825883000,-500.0,0.00029863,60]
[424385151,1780825883000,-500.0,0.00029863,60]
[424385140,1780825883000,-500.0,0.00029863,60]
[424385144,1780825883000,-500.0,0.00029863,60]
[424385143,1780825883000,-500.0,0.00029863,60]
[424385142,1780825883000,-500.0,0.00029863,2]
[424385145,1780825883000,-500.0,0.00029863,60]
[424385147,1780825883000,-500.0,0.00029863,60]
[424385146,1780825883000,-500.0,0.00029863,2]
[424385170,1780825883000,-500.0,0.00029863,2]
[424385149,1780825883000,-500.0,0.00029863,60]
[424385152,1780825883000,-500.0,0.00029863,60]
[424385154,1780825883000,-500.0,0.00029863,2]
[424385156,1780825883000,-500.0,0.00029863,60]
[424385158,1780825883000,-500.0,0.00029863,60]
[424385157,1780825883000,-500.0,0.00029863,2]
[424385155,1780825883000,-512.26529036,0.00029863,60]
[424385159,1780825883000,-150.0,0.00029863,2]
[424385153,1780825883000,-500.0,0.00029863,60]
[424385160,1780825883000,-500.0,0.00029863,60]
[424385162,1780825883000,-500.0,0.00029863,60]
[424385161,1780825883000,-500.0,0.00029863,2]
[424385163,1780825883000,-500.0,0.00029863,60]
[424385150,1780825883000,-500.0,0.00029863,2]
[424385193,1780825883000,-151.0,0.00029896,7]
[424385174,1780825883000,-500.0,0.00029863,60]
[424385201,1780825883000,-4144.0,0.0003,3]
[424385222,1780825883000,-200.0,0.0003,2]
[424385229,1780825883000,-179.97120458,0.00030014,2]
[424385230,1780825883000,-1111.53,0.000301,30]
[424385227,1780825883000,-151.0,0.00030007,60]
[424385226,1780825883000,-650.0,0.0003,2]
[424385235,1780825883000,-480.34785766,0.0003013,2]
[424385245,1780825883000,-200.0,0.00030136,2]
[424385246,1780825883000,-455.75237973,0.00030136,14]
[424385238,1780825883000,-158.42,0.00030136,2]
[424385236,1780825883000,-300.0,0.0003013,30]
[424385237,1780825883000,-158.42,0.00030136,2]
[424385234,1780825883000,-302.57116124,0.0003013,2]
[424385231,1780825883000,-364.57,0.0003013,15]
[424385239,1780825883000,-158.42,0.00030136,2]
[424385244,1780825883000,-158.42,0.00030136,2]
[424385241,1780825883000,-158.42,0.00030136,2]
[424385240,1780825883000,-158.42,0.00030136,2]
[424385242,1780825883000,-158.42,0.00030136,2]
[424385247,1780825883000,-893.2,0.00030137,31]
[424385249,1780825883000,-236.44212167,0.00030137,2]
[424385250,1780825883000,-557.89268513,0.00030137,120]
[424385248,1780825883000,-255.0,0.00030137,5]
[424385251,1780825883000,-255.365,0.00030137,14]
[424385254,1780825883000,-498.21043262,0.00030137,120]
[424385252,1780825883000,-178.43845328,0.00030137,2]
[424385192,1780825883000,-310.9883807,0.00029888,2]
[424385243,1780825883000,-158.42,0.00030136,2]
[424385228,1780825883000,-152.0,0.0003001,38]
[424385233,1780825883000,-170.99505529,0.0003013,20]
[424385223,1780825883000,-160.0,0.0003,10]
[424385198,1780825883000,-241.62835657,0.0002999,2]
[424385202,1780825883000,-11351.90742289,0.0003,2]
[424385206,1780825883000,-40549.50316454,0.0003,2]
[424385199,1780825883000,-259.51,0.00029999,3]
[424385203,1780825883000,-17149.40413627,0.0003,2]
[424385205,1780825883000,-168.19,0.0003,30]
[424385208,1780825883000,-166.15886798,0.0003,2]
[424385204,1780825883000,-700.0,0.0003,30]
[424385232,1780825883000,-205.59523308,0.0003013,2]
[424385207,1780825883000,-400.0,0.0003,20]
[424385200,1780825883000,-200.5,0.0003,30]
[424385210,1780825883000,-369.06159476,0.0003,30]
[424385209,1780825883000,-369.06159476,0.0003,30]
[424385220,1780825883000,-200.0,0.0003,2]
[424385197,1780825883000,-1516.08,0.00029969,2]
[424385213,1780825883000,-200.0,0.0003,11]
[424385211,1780825883000,-200.0,0.0003,11]
[424385215,1780825883000,-329.26,0.0003,11]
[424385214,1780825883000,-200.0,0.0003,11]
[424385216,1780825883000,-177.43738511,0.0003,2]
[424385253,1780825883000,-356.87690656,0.00030137,2]
[424385219,1780825883000,-215.83393831,0.0003,30]
[424385217,1780825883000,-1111.53,0.0003,30]
[424385221,1780825883000,-195.042,0.0003,22]
[424385218,1780825883000,-200.0,0.0003,2]
[424385225,1780825883000,-215.83393831,0.0003,10]
[424385224,1780825883000,-1514.40746,0.0003,2]
[424385212,1780825883000,-200.0,0.0003,11]
[424385265,1780825884000,-250.0,0.00030137,2]
[424385261,1780825884000,-500.0,0.00030137,3]
[424385263,1780825884000,-250.0,0.00030137,2]
[424385262,1780825884000,-500.0,0.00030137,3]
[424385268,1780825884000,-250.0,0.00030137,2]
[424385257,1780825884000,-200.0,0.00030137,120]
[424385259,1780825884000,-500.0,0.00030137,3]
[424385255,1780825884000,-501.91523565,0.00030137,120]
[424385258,1780825884000,-151.90666753,0.00030137,5]
[424385256,1780825884000,-541.05870056,0.00030137,2]
[424385267,1780825884000,-250.0,0.00030137,2]
[424385270,1780825884000,-500.0,0.00030137,3]
[424385264,1780825884000,-250.0,0.00030137,2]
[424385260,1780825884000,-500.0,0.00030137,3]
[424385269,1780825884000,-500.0,0.00030137,3]
[424385266,1780825884000,-250.0,0.00030137,2]
[424385277,1780825884000,-127.4,0.00028306,2]
[424385280,1780825884000,-251.71387294,0.00030137,120]
[424385278,1780825884000,-1279.95608881,0.00030137,120]
[424385276,1780825884000,-805.6,0.00028306,2]
[424385275,1780825884000,-20455.77943862,0.00030137,120]
[424385279,1780825884000,-1162.93859739,0.00030137,120]
[424385281,1780825884000,-357.03368088,0.00030137,120]
[424385274,1780825884000,-626.325,0.00030137,120]
[424385272,1780825884000,-1466.97,0.00030137,120]
[424385271,1780825884000,-500.0,0.00030137,3]
[424385273,1780825884000,-8767.94582613,0.00030137,120]
[424385282,1780825884000,-39766.45996109,0.00030137,120]
[424385286,1780825885000,-1687.50403543,0.00030137,120]
[424385283,1780825885000,150.0,0.00029478,120]
[424385284,1780825885000,-1651.82633891,0.00030137,120]
[424385285,1780825885000,-6545.52646171,0.00030137,120]
[424385287,1780825885000,-534.0,0.00030137,120]